fUSD/lending_fUSD_20240907
["ID","MTS","AMOUNT","RATE_DAILY","PERIOD"]
[337472021,1725678667932,-508.18,0.00014987,2]
[337472022,1725678667941,-500.0,0.00014987,2]
[337472023,1725678667950,-821.55,0.00014987,2]
[337472024,1725678667960,-708.11,0.00014987,2]
[337472025,1725678667969,-500.0,0.00014987,2]
[337472026,1725678667978,-500.0,0.00014987,2]
[337472027,1725678667987,-500.0,0.00014987,2]
[337472028,1725678667996,-500.0,0.00014987,2]
[337472029,1725678668006,-500.0,0.00014987,2]
[337472030,1725678668018,-500.0,0.00014987,2]
[337472031,1725678668028,-605.15188716,0.00014987,2]
[337472032,1725678668037,-531.25,0.00014987,2]
[337472033,1725678668047,-292.92454497,0.00014987,2]
[337472034,1725678668056,-804.62,0.00014987,2]
[337472035,1725678668065,-500.0,0.00014987,2]
[337472036,1725678668075,-500.0,0.00014987,2]
[337472037,1725678668084,-500.0,0.00014987,2]
[337472038,1725678668093,-500.0,0.00014987,2]
[337472039,1725678668102,-500.0,0.00014987,2]
[337472040,1725678668111,-588.68221601,0.00014987,2]
[337472041,1725678668121,-482.65386507,0.00014987,2]
[337472042,1725678668131,-500.0,0.00014987,2]
[337472043,1725678668139,-500.0,0.00014987,2]
[337472044,1725678668148,-500.0,0.00014987,2]
[337472045,1725678668158,-500.0,0.00014987,2]
[337472046,1725678668167,-883.86,0.00014987,2]
[337472047,1725678668176,-518.55,0.00014987,2]
[337472048,1725678668186,-500.0,0.00014987,2]
[337472049,1725678668195,-500.0,0.00014987,2]
[337472050,1725678668205,-500.0,0.00014987,2]
[337472051,1725678668214,-500.0,0.00014987,2]
[337472052,1725678668223,-500.0,0.00014987,2]
[337472053,1725678668233,-500.0,0.00014987,2]
[337472054,1725678668242,-539.71,0.00014987,2]
[337472055,1725678668251,-500.0,0.00014987,2]
[337472056,1725678668260,-500.0,0.00014987,2]
[337472057,1725678668270,-500.0,0.00014987,2]
[337472058,1725678668280,-500.0,0.00014987,2]
[337472059,1725678668290,-500.0,0.00014987,2]
[337472060,1725678668299,-500.0,0.00014987,2]
[337472061,1725678668308,-500.0,0.00014987,2]
[337472062,1725678668317,-728.98,0.00014987,2]
[337472063,1725678668326,-670.51,0.00014987,2]
[337472064,1725678668336,-1830.7,0.00014987,2]
[337472065,1725678668345,-921.35,0.00014987,2]
[337472066,1725678668355,-500.0,0.00014987,2]
[337472067,1725678668366,-738.41,0.00014987,2]
[337472068,1725678668377,-429.99732574,0.00014987,2]
[337472069,1725678668386,-538.68,0.00014987,2]
[337472070,1725678668395,-500.0,0.00014987,2]
[337472071,1725678668405,-870.51,0.00014987,2]
[337472072,1725678668414,-508.34,0.00014987,2]
[337472073,1725678668423,-1042.4,0.00014987,2]
[337472074,1725678668432,-791.72,0.00014987,2]
[337472075,1725678668441,-500.0,0.00014987,2]
[337472076,1725678668451,-500.0,0.00014987,2]
[337472077,1725678668461,-292.787199,0.00014989,2]
[337472078,1725678668469,-151.0,0.00014989,2]
[337472079,1725678668478,-151.0,0.00014989,2]
[337472080,1725678668487,-151.0,0.00014989,2]
[337472081,1725678668496,-151.0,0.00014989,2]
[337472082,1725678668505,-500.0,0.00014989,2]
[337472083,1725678668514,-500.0,0.00014989,2]
[337472084,1725678668523,-1072.89,0.00014989,2]
[337472085,1725678668533,-500.0,0.00014989,2]
[337472086,1725678668542,-500.0,0.00014989,2]
[337472087,1725678668551,-282.36129035,0.00014989,2]
[337472088,1725678668560,-986.09,0.00014989,2]
[337472089,1725678668571,-500.0,0.00014989,2]
[337472090,1725678668581,-571.61,0.00014989,2]
[337472091,1725678668592,-500.0,0.00014989,2]
[337472092,1725678668602,-650.71,0.00014989,2]
[337472093,1725678668612,-1126.57,0.00014989,2]
[337472094,1725678668622,-1462.98,0.00014989,2]
[337472095,1725678668633,-151.0,0.00014989,2]
[337472096,1725678668644,-628.1,0.00014989,2]
[337472097,1725678668655,-245.661976,0.00014989,2]
[337472098,1725678668665,-245.661976,0.00014989,2]
[337472099,1725678668674,-594.35,0.00014989,2]
[337472100,1725678668684,-1027.64,0.00014989,2]
[337472101,1725678668696,-664.3,0.00014989,2]
[337472102,1725678668708,-151.0,0.00014989,2]
[337472103,1725678668719,-151.0,0.00014989,2]
[337472104,1725678668731,-588.25714379,0.00014989,2]
[337472105,1725678668742,-404.43201974,0.00014989,2]
[337472106,1725678668753,-285.317301,0.00014989,2]
[337472107,1725678668764,-500.0,0.00014989,2]
[337472108,1725678668774,-726.71,0.00014989,2]
[337472109,1725678668786,-921.81,0.00014989,2]
[337472110,1725678668795,-282.16,0.00014989,2]
[337472111,1725678668805,-151.0,0.00014989,2]
[337472112,1725678668818,-500.0,0.00014989,2]
[337472113,1725678668828,-576.9,0.00014989,2]
[337472114,1725678668838,-526.87,0.00014989,2]
[337472115,1725678668847,-500.0,0.00014994,2]
[337472116,1725678668856,-500.0,0.00014994,2]
[337472117,1725678668871,-561.64,0.00014994,2]
[337472118,1725678668882,-1112.14,0.00014994,2]
[337472119,1725678668892,-500.0,0.00014994,2]
[337472120,1725678668901,-500.0,0.00014994,2]
[337472121,1725678668911,-549.74,0.00014994,2]
[337472122,1725678668921,-1641.11,0.00014994,2]
[337472123,1725678668930,-500.0,0.00014994,2]
[337472124,1725678668941,-634.56,0.00014994,2]
[337472125,1725678668950,-500.0,0.00014994,2]
[337472126,1725678668959,-222.20637699,0.00014994,2]
[337472127,1725678668969,-543.25,0.00014994,2]
[337472128,1725678668978,-500.0,0.00014994,2]
[337472129,1725678668987,-500.0,0.00014994,2]
[337472130,1725678668996,-500.0,0.00014994,2]
[337472131,1725678669005,-1756.53,0.00014994,2]
[337472132,1725678669015,-500.0,0.00014994,2]
[337472133,1725678669024,-707.68,0.00014994,2]
[337472134,1725678669034,-500.0,0.00014994,2]
[337472135,1725678669043,-500.0,0.00014994,2]
[337472136,1725678669053,-500.0,0.00014994,2]
[337472137,1725678669064,-500.0,0.00014994,2]
[337472138,1725678669073,-500.0,0.00014994,2]
[337472139,1725678669084,-500.0,0.00014994,2]
[337472140,1725678669094,-700.8,0.00014994,2]
[337472141,1725678669104,-500.0,0.00014994,2]
[337472142,1725678669113,-500.0,0.00014994,2]
[337472143,1725678669123,-500.0,0.00014994,2]
[337472144,1725678669135,-546.27,0.00014994,2]
[337472145,1725678669146,-500.0,0.00014994,2]
[337472146,1725678669156,-500.0,0.00014994,2]
[337472147,1725678669166,-750.52,0.00014994,2]
[337472148,1725678669177,-719.34,0.00014994,2]
[337472149,1725678669189,-500.0,0.00014994,2]
[337472150,1725678669199,-500.0,0.00014994,2]
[337472151,1725678669209,-500.0,0.00014994,2]
[337472152,1725678669219,-500.0,0.00014994,2]
[337472153,1725678669229,-500.0,0.00014994,2]
[337472154,1725678669241,-500.0,0.00014994,2]
[337472155,1725678669250,-906.92,0.00014994,2]
[337472156,1725678669261,-3278.12,0.00014994,2]
[337472157,1725678669272,-949.38,0.00014994,2]
[337472158,1725678669281,-1052.36,0.00014994,2]
[337472159,1725678669291,-720.52,0.00014994,2]
[337472160,1725678669301,-500.0,0.00014994,2]
[337472161,1725678669312,-1493.88,0.00014994,2]
[337472162,1725678669321,-500.0,0.00014994,2]
[337472163,1725678669331,-2642.43,0.00014994,2]
[337472164,1725678669339,-505.62,0.00014994,2]
[337472165,1725678669349,-2497.94,0.00014994,2]
[337472166,1725678669359,-2113.53,0.00014994,2]
[337472167,1725678669369,-704.11,0.00014994,2]
[337472168,1725678669378,-504.95,0.00014994,2]
[337472169,1725678669388,-500.0,0.00014994,2]
[337472170,1725678669397,-500.0,0.00014994,2]
[337472171,1725678669407,-500.0,0.00014994,2]
[337472172,1725678669417,-500.0,0.00014994,2]
[337472173,1725678669591,-1362.91,0.00014994,2]
[337472174,1725678669602,-908.15,0.00014994,2]
[337472175,1725678669612,-500.0,0.00014994,2]
[337472176,1725678669622,-500.0,0.00014994,2]
[337472177,1725678669630,-1424.33,0.00014994,2]
[337472178,1725678669640,-500.0,0.00014994,2]
[337472179,1725678669650,-500.0,0.00014994,2]
[337472180,1725678669669,-500.0,0.00014994,2]
[337472181,1725678669687,-649.33,0.00014994,2]
[337472182,1725678669706,-500.0,0.00014994,2]
[337472183,1725678669723,-1035.58,0.00014994,2]
[337472184,1725678669742,-500.0,0.00014994,2]
[337472185,1725678669758,-831.9,0.00014994,2]
[337472186,1725678669769,-500.0,0.00014994,2]
[337472187,1725678669779,-595.79,0.00014994,2]
[337472188,1725678669789,-500.0,0.00014994,2]
[337472189,1725678669799,-595.33759158,0.00014994,2]
[337472190,1725678669809,-524.3,0.00014994,2]
[337472191,1725678669819,-500.0,0.00014994,2]
[337472192,1725678669829,-664.2,0.00014994,2]
[337472193,1725678669839,-1221.82,0.00014994,2]
[337472194,1725678669847,-500.0,0.00014994,2]
[337472195,1725678669857,-500.0,0.00014994,2]
[337472196,1725678669869,-500.0,0.00014994,2]
[337472197,1725678669879,-500.0,0.00014994,2]
[337472198,1725678669889,-500.0,0.00014994,2]
[337472199,1725678669899,-500.0,0.00014994,2]
[337472200,1725678669908,-500.0,0.00014994,2]
[337472201,1725678669918,-5508.41,0.00014994,2]
[337472202,1725678669928,-500.0,0.00014994,2]
[337472203,1725678669937,-500.0,0.00014994,2]
[337472204,1725678669947,-906.78,0.00014994,2]
[337472205,1725678669955,-500.0,0.00014994,2]
[337472206,1725678669965,-500.0,0.00014994,2]
[337472207,1725678669975,-500.0,0.00014994,2]
[337472208,1725678669985,-500.0,0.00014994,2]
[337472209,1725678669995,-500.0,0.00014994,2]
[337472210,1725678670004,-526.31,0.00014994,2]
[337472211,1725678670014,-500.0,0.00014994,2]
[337472212,1725678670023,-5797.55,0.00014994,2]
[337472213,1725678670033,-353.41461735,0.00014994,2]
[337472214,1725678670042,-521.21,0.00014994,2]
[337472215,1725678670051,-500.0,0.00014994,2]
[337472216,1725678670061,-587.13,0.00014994,2]
[337472217,1725678670071,-151.0,0.00014994,2]
[337472218,1725678670080,-555.69,0.00014994,2]
[337472219,1725678670090,-500.0,0.00014994,2]
[337472220,1725678670099,-615.679394,0.00014994,2]
[337472221,1725678670109,-615.679394,0.00014994,2]
[337472222,1725678670119,-1112.73,0.00014994,2]
[337472223,1725678670129,-495.42,0.00014994,2]
[337472224,1725678670138,-151.0,0.00014994,2]
[337472225,1725678670147,-500.0,0.00014994,2]
[337472226,1725678670157,-507.16,0.00014994,2]
[337472227,1725678670166,-500.0,0.00014994,2]
[337472228,1725678670175,-500.0,0.00014994,2]
[337472229,1725678670187,-500.0,0.00014994,2]
[337472230,1725678670197,-500.0,0.00014994,2]
[337472231,1725678670207,-500.0,0.00014994,2]
[337472232,1725678670216,-524.28,0.00014994,2]
[337472233,1725678670225,-500.0,0.00014994,2]
[337472234,1725678670234,-1668.81,0.00014994,2]
[337472235,1725678670244,-500.0,0.00014994,2]
[337472236,1725678670253,-962.27,0.00014994,2]
[337472237,1725678670262,-500.0,0.00014994,2]
[337472238,1725678670272,-500.0,0.00014994,2]
[337472239,1725678670283,-500.0,0.00014994,2]
[337472240,1725678670292,-2302.07,0.00014994,2]
[337472241,1725678670302,-151.0,0.00014994,2]
[337472242,1725678670311,-414.88,0.00014994,2]
[337472243,1725678670320,-2788.79,0.00014994,2]
[337472244,1725678670329,-151.0,0.00014994,2]
[337472245,1725678670339,-403.0,0.00014994,2]
[337472246,1725678670348,-151.0,0.00014994,2]
[337472247,1725678670358,-500.0,0.00014994,2]
[337472248,1725678670367,-151.0,0.00014994,2]
[337472249,1725678670376,-500.0,0.00014994,2]
[337472250,1725678670385,-500.0,0.00014994,2]
[337472251,1725678670394,-500.0,0.00014994,2]
[337472252,1725678670404,-500.0,0.00014994,2]
[337472253,1725678670413,-500.0,0.00014994,2]
[337472254,1725678670422,-509.44,0.00014994,2]
[337472255,1725678670431,-500.0,0.00014994,2]
[337472256,1725678670441,-544.21,0.00014994,2]
[337472257,1725678670450,-633.7,0.00014994,2]
[337472258,1725678670460,-1041.49,0.00014994,2]
[337472259,1725678670469,-500.0,0.00014994,2]
[337472260,1725678670478,-500.0,0.00014994,2]
[337472261,1725678670487,-500.0,0.00014994,2]
[337472262,1725678670496,-5150.41,0.00014994,2]
[337472263,1725678670505,-763.44,0.00014994,2]
[337472264,1725678670514,-550.4,0.00014994,2]
[337472265,1725678670524,-500.0,0.00014994,2]
[337472266,1725678670534,-916.93,0.00014994,2]
[337472267,1725678670543,-3689.58,0.00014994,2]
[337472268,1725678670552,-151.0,0.00014996,2]
[337472269,1725678670561,-2471.83,0.00014996,2]
[337472270,1725678670570,-500.0,0.00014996,2]
[337472271,1725678670580,-500.0,0.00014996,2]
[337472272,1725678670589,-500.0,0.00014996,2]
[337472273,1725678670599,-500.0,0.00014996,2]
[337472274,1725678670608,-151.0,0.00014996,2]
[337472275,1725678670617,-151.0,0.00014996,2]
[337472276,1725678670627,-523.17,0.00014996,2]
[337472277,1725678670637,-500.0,0.00014996,2]
[337472278,1725678670646,-209.101856,0.00014996,2]
[337472279,1725678670655,-500.0,0.00014996,2]
[337472280,1725678670664,-151.0,0.00014996,2]
[337472281,1725678670673,-500.0,0.00014996,2]
[337472282,1725678670682,-500.0,0.00014996,2]
[337472283,1725678670691,-500.0,0.00014996,2]
[337472284,1725678670702,-500.0,0.00014996,2]
[337472285,1725678670711,-500.0,0.00014996,2]
[337472286,1725678670722,-508.18,0.00014996,2]
[337472287,1725678670733,-334.9963822,0.00014996,2]
[337472288,1725678670744,-500.0,0.00014996,2]
[337472289,1725678670755,-821.55,0.00014996,2]
[337472290,1725678670766,-500.0,0.00014996,2]
[337472291,1725678670776,-708.11,0.00014996,2]
[337472292,1725678670786,-1072.89,0.00014996,2]
[337472293,1725678670796,-151.0,0.00014996,2]
[337472294,1725678670807,-500.0,0.00014996,2]
[337472295,1725678670817,-500.0,0.00014996,2]
[337472296,1725678670827,-500.0,0.00014996,2]
[337472297,1725678670836,-151.0,0.00014996,2]
[337472298,1725678670845,-549.74,0.00014996,2]
[337472299,1725678670856,-500.0,0.00014996,2]
[337472300,1725678670866,-500.0,0.00014996,2]
[337472301,1725678670877,-500.0,0.00014996,2]
[337472302,1725678670887,-151.0,0.00014996,2]
[337472303,1725678670896,-151.0,0.00014996,2]
[337472304,1725678670906,-500.0,0.00014996,2]
[337472305,1725678670916,-500.0,0.00014996,2]
[337472306,1725678670925,-986.09,0.00014996,2]
[337472307,1725678670934,-500.0,0.00014996,2]
[337472308,1725678670945,-500.0,0.00014996,2]
[337472309,1725678670955,-500.0,0.00014996,2]
[337472310,1725678670964,-531.25,0.00014996,2]
[337472311,1725678670973,-571.61,0.00014996,2]
[337472312,1725678670982,-804.62,0.00014996,2]
[337472313,1725678670991,-500.0,0.00014996,2]
[337472314,1725678671001,-500.0,0.00014996,2]
[337472315,1725678671012,-1756.53,0.00014996,2]
[337472316,1725678671023,-500.0,0.00014996,2]
[337472317,1725678671034,-500.0,0.00014996,2]
[337472318,1725678671043,-500.0,0.00014996,2]
[337472319,1725678671055,-650.71,0.00014996,2]
[337472320,1725678671065,-500.0,0.00014996,2]
[337472321,1725678671075,-1126.57,0.00014996,2]
[337472322,1725678671085,-500.0,0.00014996,2]
[337472323,1725678671095,-1462.98,0.00014996,2]
[337472324,1725678671106,-628.1,0.00014996,2]
[337472325,1725678671115,-594.35,0.00014996,2]
[337472326,1725678671125,-700.8,0.00014996,2]
[337472327,1725678671135,-1027.64,0.00014996,2]
[337472328,1725678671145,-500.0,0.00014996,2]
[337472329,1725678671155,-500.0,0.00014996,2]
[337472330,1725678671164,-664.3,0.00014996,2]
[337472331,1725678671174,-500.0,0.00014996,2]
[337472332,1725678671185,-500.0,0.00014996,2]
[337472333,1725678671195,-500.0,0.00014996,2]
[337472334,1725678671205,-500.0,0.00014996,2]
[337472335,1725678671214,-500.0,0.00014996,2]
[337472336,1725678671225,-726.71,0.00014996,2]
[337472337,1725678671235,-500.0,0.00014996,2]
[337472338,1725678671244,-505.62,0.00014996,2]
[337472339,1725678671255,-284.65569633,0.00014996,2]
[337472340,1725678671266,-921.81,0.00014996,2]
[337472341,1725678671275,-883.86,0.00014996,2]
[337472342,1725678671284,-500.0,0.00014996,2]
[337472343,1725678671294,-518.55,0.00014996,2]
[337472344,1725678671303,-500.0,0.00014996,2]
[337472345,1725678671312,-500.0,0.00014996,2]
[337472346,1725678671324,-500.0,0.00014996,2]
[337472347,1725678671333,-500.0,0.00014996,2]
[337472348,1725678671344,-500.0,0.00014996,2]
[337472349,1725678671353,-500.0,0.00014996,2]
[337472350,1725678671362,-500.0,0.00014996,2]
[337472351,1725678671373,-500.0,0.00014996,2]
[337472352,1725678671384,-500.0,0.00014996,2]
[337472353,1725678671395,-269.15497385,0.00014996,2]
[337472354,1725678671405,-500.0,0.00014996,2]
[337472355,1725678671416,-500.0,0.00014996,2]
[337472356,1725678671426,-500.0,0.00014996,2]
[337472357,1725678671436,-576.9,0.00014996,2]
[337472358,1725678671446,-500.0,0.00014996,2]
[337472359,1725678671455,-539.71,0.00014996,2]
[337472360,1725678671465,-500.0,0.00014996,2]
[337472361,1725678671474,-526.87,0.00014996,2]
[337472362,1725678671485,-500.0,0.00014996,2]
[337472363,1725678671495,-500.0,0.00014996,2]
[337472364,1725678671506,-500.0,0.00014996,2]
[337472365,1725678671516,-628.4656,0.00014996,2]
[337472366,1725678671527,-500.0,0.00014996,2]
[337472367,1725678671537,-500.0,0.00014996,2]
[337472368,1725678671549,-500.0,0.00014996,2]
[337472369,1725678671558,-500.0,0.00014996,2]
[337472370,1725678671568,-151.0,0.00014996,2]
[337472371,1725678671578,-151.0,0.00014996,2]
[337472372,1725678671588,-151.0,0.00014996,2]
[337472373,1725678671599,-500.0,0.00014996,2]
[337472374,1725678671610,-906.78,0.00014996,2]
[337472375,1725678671620,-500.0,0.00014996,2]
[337472376,1725678671630,-151.0,0.00014996,2]
[337472377,1725678671641,-150.0,0.00014996,2]
[337472378,1725678671651,-166.919425,0.00014996,2]
[337472379,1725678671663,-166.919425,0.00014996,2]
[337472380,1725678671673,-728.98,0.00014996,2]
[337472381,1725678671682,-670.51,0.00014996,2]
[337472382,1725678671692,-1830.7,0.00014996,2]
[337472383,1725678671703,-500.0,0.00014996,2]
[337472384,1725678671713,-921.35,0.00014996,2]
[337472385,1725678671725,-1112.73,0.00014996,2]
[337472386,1725678671740,-446.254511,0.00014996,2]
[337472387,1725678671750,-446.254511,0.00014996,2]
[337472388,1725678671762,-500.0,0.00014996,2]
[337472389,1725678671772,-500.0,0.00014996,2]
[337472390,1725678671782,-500.0,0.00014996,2]
[337472391,1725678671792,-738.41,0.00014996,2]
[337472392,1725678671801,-500.0,0.00014996,2]
[337472393,1725678671810,-500.0,0.00014996,2]
[337472394,1725678671819,-500.0,0.00014996,2]
[337472395,1725678671828,-524.28,0.00014996,2]
[337472396,1725678671838,-962.27,0.00014996,2]
[337472397,1725678671847,-500.0,0.00014996,2]
[337472398,1725678671856,-538.68,0.00014996,2]
[337472399,1725678671867,-500.0,0.00014996,2]
[337472400,1725678671877,-611.09163816,0.00014996,2]
[337472401,1725678671886,-870.51,0.00014996,2]
[337472402,1725678671896,-500.0,0.00014996,2]
[337472403,1725678671905,-333.84556411,0.00014996,2]
[337472404,1725678671914,-508.34,0.00014996,2]
[337472405,1725678671924,-1042.4,0.00014996,2]
[337472406,1725678671933,-791.72,0.00014996,2]
[337472407,1725678671942,-500.0,0.00014996,2]
[337472408,1725678671951,-509.44,0.00014996,2]
[337472409,1725678671961,-544.21,0.00014996,2]
[337472410,1725678671971,-633.7,0.00014996,2]
[337472411,1725678671981,-1041.49,0.00014996,2]
[337472412,1725678671990,-500.0,0.00014996,2]
[337472413,1725678671999,-500.0,0.00014996,2]
[337472414,1725678672008,-5150.41,0.00014996,2]
[337472415,1725678672017,-763.44,0.00014996,2]
[337472416,1725678672026,-550.4,0.00014996,2]
[337472417,1725678672037,-3689.58,0.00014996,2]
[337472418,1725678672046,-2471.83,0.00014997,2]
[337472419,1725678672056,-2471.83,0.00014997,2]
[337472420,1725678672065,-500.0,0.00014997,2]
[337472421,1725678672074,-500.0,0.00014997,2]
[337472422,1725678672083,-500.0,0.00014997,2]
[337472423,1725678672093,-500.0,0.00014997,2]
[337472424,1725678672103,-251.490497,0.00014997,2]
[337472425,1725678672112,-500.0,0.00014997,2]
[337472426,1725678672123,-500.0,0.00014997,2]
[337472427,1725678672133,-500.0,0.00014997,2]
[337472428,1725678672142,-500.0,0.00014997,2]
[337472429,1725678672151,-523.17,0.00014997,2]
[337472430,1725678672161,-523.17,0.00014997,2]
[337472431,1725678672170,-195.35389423,0.00014997,2]
[337472432,1725678672180,-500.0,0.00014997,2]
[337472433,1725678672190,-500.0,0.00014997,2]
[337472434,1725678672200,-500.0,0.00014997,2]
[337472435,1725678672210,-500.0,0.00014997,2]
[337472436,1725678672219,-500.0,0.00014997,2]
[337472437,1725678672230,-500.0,0.00014997,2]
[337472438,1725678672240,-500.0,0.00014997,2]
[337472439,1725678672250,-500.0,0.00014997,2]
[337472440,1725678672260,-361.1716628,0.00014997,2]
[337472441,1725678672270,-500.0,0.00014997,2]
[337472442,1725678672279,-500.0,0.00014997,2]
[337472443,1725678672289,-151.0,0.00014997,2]
[337472444,1725678672299,-500.0,0.00014997,2]
[337472445,1725678672308,-500.0,0.00014997,2]
[337472446,1725678672318,-508.18,0.00014997,2]
[337472447,1725678672328,-508.18,0.00014997,2]
[337472448,1725678672340,-186.38896662,0.00014997,2]
[337472449,1725678672349,-500.0,0.00014997,2]
[337472450,1725678672359,-500.0,0.00014997,2]
[337472451,1725678672369,-500.0,0.00014997,2]
[337472452,1725678672379,-561.64,0.00014997,2]
[337472453,1725678672389,-561.64,0.00014997,2]
[337472454,1725678672399,-821.55,0.00014997,2]
[337472455,1725678672409,-821.55,0.00014997,2]
[337472456,1725678672418,-500.0,0.00014997,2]
[337472457,1725678672427,-500.0,0.00014997,2]
[337472458,1725678672437,-500.0,0.00014997,2]
[337472459,1725678672447,-708.11,0.00014997,2]
[337472460,1725678672456,-708.11,0.00014997,2]
[337472461,1725678672465,-1072.89,0.00014997,2]
[337472462,1725678672475,-1072.89,0.00014997,2]
[337472463,1725678672485,-1072.89,0.00014997,2]
[337472464,1725678672495,-500.0,0.00014997,2]
[337472465,1725678672504,-500.0,0.00014997,2]
[337472466,1725678672513,-1112.14,0.00014997,2]
[337472467,1725678672523,-1112.14,0.00014997,2]
[337472468,1725678672533,-500.0,0.00014997,2]
[337472469,1725678672543,-156.53216718,0.00014997,2]
[337472470,1725678672552,-500.0,0.00014997,2]
[337472471,1725678672562,-152.90497443,0.00014997,2]
[337472472,1725678672572,-500.0,0.00014997,2]
[337472473,1725678672582,-500.0,0.00014997,2]
[337472474,1725678672592,-549.74,0.00014997,2]
[337472475,1725678672602,-500.0,0.00014997,2]
[337472476,1725678672611,-500.0,0.00014997,2]
[337472477,1725678672620,-550.94825114,0.00014997,2]
[337472478,1725678672630,-500.0,0.00014997,2]
[337472479,1725678672639,-500.0,0.00014997,2]
[337472480,1725678672649,-1641.11,0.00014997,2]
[337472481,1725678672658,-1641.11,0.00014997,2]
[337472482,1725678672668,-500.0,0.00014997,2]
[337472483,1725678672678,-500.0,0.00014997,2]
[337472484,1725678672687,-500.0,0.00014997,2]
[337472485,1725678672698,-986.09,0.00014997,2]
[337472486,1725678672708,-986.09,0.00014997,2]
[337472487,1725678672717,-986.09,0.00014997,2]
[337472488,1725678672727,-500.0,0.00014997,2]
[337472489,1725678672737,-500.0,0.00014997,2]
[337472490,1725678672746,-634.56,0.00014997,2]
[337472491,1725678672756,-634.56,0.00014997,2]
[337472492,1725678672766,-500.0,0.00014997,2]
[337472493,1725678672775,-500.0,0.00014997,2]
[337472494,1725678672786,-500.0,0.00014997,2]
[337472495,1725678672795,-500.0,0.00014997,2]
[337472496,1725678672804,-177.627873,0.00014997,2]
[337472497,1725678672814,-177.627873,0.00014997,2]
[337472498,1725678672983,-531.25,0.00014997,2]
[337472499,1725678672994,-531.25,0.00014997,2]
[337472500,1725678673003,-571.61,0.00014997,2]
[337472501,1725678673012,-571.61,0.00014997,2]
[337472502,1725678673022,-571.61,0.00014997,2]
[337472503,1725678673031,-543.25,0.00014997,2]
[337472504,1725678673042,-543.25,0.00014997,2]
[337472505,1725678673051,-693.940539,0.00014997,2]
[337472506,1725678673060,-540.439157,0.00014997,2]
[337472507,1725678673070,-693.940539,0.00014997,2]
[337472508,1725678673079,-804.62,0.00014997,2]
[337472509,1725678673088,-804.62,0.00014997,2]
[337472510,1725678673098,-500.0,0.00014997,2]
[337472511,1725678673107,-500.0,0.00014997,2]
[337472512,1725678673116,-500.0,0.00014997,2]
[337472513,1725678673126,-500.0,0.00014997,2]
[337472514,1725678673135,-500.0,0.00014997,2]
[337472515,1725678673144,-500.0,0.00014997,2]
[337472516,1725678673154,-1756.53,0.00014997,2]
[337472517,1725678673163,-500.0,0.00014997,2]
[337472518,1725678673172,-500.0,0.00014997,2]
[337472519,1725678673181,-500.0,0.00014997,2]
[337472520,1725678673190,-500.0,0.00014997,2]